[Event "*** Titled Tuesday Blitz"]
[Site "Chess.com"]
[Date "2019.01.01"]
[Round "6"]
[White "Kostya_Nikologorskiy"]
[Black "RajdeepS"]
[Result "1-0"]
[WhiteElo "2385"]
[BlackElo "2499"]
[TimeControl "180+2"]
[EndTime "14:27:57 PST"]
[Termination "Kostya_Nikologorskiy won by resignation"]

1. d4 {[%clk 0:03:01.9]} 1... e6 {[%clk 0:02:56.8]} 2. c4 {[%clk 0:03:01.2]}
2... b6 {[%clk 0:02:57.8]} 3. Nc3 {[%clk 0:03:01]} 3... Bb7 {[%clk 0:02:58.9]}
4. Nf3 {[%clk 0:03:01.9]} 4... Nf6 {[%clk 0:02:58]} 5. g3 {[%clk 0:03:02.9]}
5... Bxf3 {[%clk 0:02:55.6]} 6. exf3 {[%clk 0:03:03.6]} 6... d5 {[%clk
0:02:56.7]} 7. cxd5 {[%clk 0:02:39.6]} 7... Nxd5 {[%clk 0:02:56.6]} 8. Bb5+
{[%clk 0:02:24.7]} 8... c6 {[%clk 0:02:56.3]} 9. Ba4 {[%clk 0:02:26.1]} 9... Be7
{[%clk 0:02:52.9]} 10. O-O {[%clk 0:02:25.6]} 10... O-O {[%clk 0:02:52.8]} 11.
Ne4 {[%clk 0:02:22.5]} 11... b5 {[%clk 0:02:40.4]} 12. Bc2 {[%clk 0:02:22.8]}
12... Nd7 {[%clk 0:02:39.8]} 13. f4 {[%clk 0:02:21.3]} 13... N7f6 {[%clk
0:02:39.2]} 14. Ng5 {[%clk 0:02:18.6]} 14... h6 {[%clk 0:02:38.9]} 15. Nf3
{[%clk 0:02:18.8]} 15... Rc8 {[%clk 0:02:36.6]} 16. a3 {[%clk 0:02:08.9]} 16...
a5 {[%clk 0:02:34.5]} 17. Qe2 {[%clk 0:02:03.8]} 17... Qb6 {[%clk 0:02:30.5]}
18. Be3 {[%clk 0:01:48.6]} 18... Nxe3 {[%clk 0:02:25.6]} 19. Qxe3 {[%clk
0:01:49.2]} 19... Rfe8 {[%clk 0:02:19.4]} 20. Ne5 {[%clk 0:01:41.3]} 20... c5
{[%clk 0:02:17.4]} 21. dxc5 {[%clk 0:01:42]} 21... Bxc5 {[%clk 0:02:17.3]} 22.
Qe2 {[%clk 0:01:42]} 22... Bd4 {[%clk 0:02:14.3]} 23. Bd3 {[%clk 0:01:36.5]}
23... b4 {[%clk 0:02:13.7]} 24. Rac1 {[%clk 0:01:25.8]} 24... Nd5 {[%clk
0:02:03.6]} 25. a4 {[%clk 0:01:00.8]} 25... Bxe5 {[%clk 0:01:49.9]} 26. Qxe5
{[%clk 0:00:55.5]} 26... Nf6 {[%clk 0:01:39.2]} 27. h3 {[%clk 0:00:49.7]} 27...
Red8 {[%clk 0:01:38.8]} 28. Rxc8 {[%clk 0:00:49.9]} 28... Rxc8 {[%clk
0:01:38.9]} 29. Rd1 {[%clk 0:00:50.7]} 29... Rd8 {[%clk 0:01:21.6]} 30. b3
{[%clk 0:00:38]} 30... Rd5 {[%clk 0:01:14.5]} 31. Qe2 {[%clk 0:00:34.2]} 31...
Qd8 {[%clk 0:01:14.6]} 32. Bc2 {[%clk 0:00:34.8]} 32... Rxd1+ {[%clk 0:01:14.8]}
33. Bxd1 {[%clk 0:00:33.6]} 33... Nd5 {[%clk 0:01:14.2]} 34. Qc4 {[%clk
0:00:25]} 34... Nxf4 {[%clk 0:01:06.7]} 35. Bg4 {[%clk 0:00:20.7]} 35... Nd5
{[%clk 0:01:03.3]} 36. Bf3 {[%clk 0:00:20.3]} 36... Nc3 {[%clk 0:01:04]} 37. Kg2
{[%clk 0:00:21.6]} 37... e5 {[%clk 0:01:00.3]} 38. h4 {[%clk 0:00:19.2]} 38...
Qe7 {[%clk 0:00:59.5]} 39. Qc8+ {[%clk 0:00:18.4]} 39... Kh7 {[%clk 0:00:58.2]}
40. h5 {[%clk 0:00:19.4]} 40... e4 {[%clk 0:00:57.1]} 41. Qf5+ {[%clk
0:00:18.9]} 41... Kg8 {[%clk 0:00:56.3]} 42. Qc8+ {[%clk 0:00:18.6]} 42... Qf8
{[%clk 0:00:57.3]} 43. Bg4 {[%clk 0:00:13.3]} 43... Qxc8 {[%clk 0:00:57.4]} 44.
Bxc8 {[%clk 0:00:15.2]} 44... Kf8 {[%clk 0:00:58.9]} 45. g4 {[%clk 0:00:15.3]}
45... Ke7 {[%clk 0:00:59.7]} 46. Ba6 {[%clk 0:00:15.3]} 46... Kd6 {[%clk
0:00:58.3]} 47. Bc4 {[%clk 0:00:16]} 47... f6 {[%clk 0:00:59.4]} 48. f3 {[%clk
0:00:17.1]} 48... Ke5 {[%clk 0:01:00]} 49. fxe4 {[%clk 0:00:18]} 49... Nxe4
{[%clk 0:00:59.3]} 50. Kf3 {[%clk 0:00:19]} 50... Kd4 {[%clk 0:00:59.4]} 51. Kf4
{[%clk 0:00:19.6]} 51... Nd2 {[%clk 0:00:59.4]} 52. Bf7 {[%clk 0:00:20.4]} 52...
Kc3 {[%clk 0:01:00.4]} 53. Kf5 {[%clk 0:00:21.6]} 53... Nxb3 {[%clk 0:01:01.6]}
54. Kg6 {[%clk 0:00:23]} 54... Nd2 {[%clk 0:01:00]} 55. Kxg7 {[%clk 0:00:23.9]}
55... b3 {[%clk 0:00:56.1]} 56. Kxh6 {[%clk 0:00:21.5]} 56... b2 {[%clk
0:00:54.3]} 57. Ba2 {[%clk 0:00:22.8]} 57... Kb4 {[%clk 0:00:53.9]} 58. Kg7
{[%clk 0:00:23.8]} 58... Ka3 {[%clk 0:00:55]} 59. Bb1 {[%clk 0:00:23.4]} 59...
Nxb1 {[%clk 0:00:55.4]} 60. h6 {[%clk 0:00:25.3]} 60... Nc3 {[%clk 0:00:54.8]}
61. h7 {[%clk 0:00:27.2]} 61... b1=Q {[%clk 0:00:55.2]} 62. h8=Q {[%clk
0:00:29.1]} 62... Nxa4 {[%clk 0:00:51.9]} 63. Qc8 {[%clk 0:00:21.5]} 63... Qb4
{[%clk 0:00:49.7]} 64. Kxf6 {[%clk 0:00:21.4]} 64... Qxg4 {[%clk 0:00:47.8]} 65.
Qxg4 {[%clk 0:00:21.7]} 1-0

[Event "*** Titled Tuesday Blitz"]
[Site "Chess.com"]
[Date "2019.01.01"]
[Round "6"]
[White "Vamostodorecto"]
[Black "talento10"]
[Result "1-0"]
[WhiteElo "2404"]
[BlackElo "2523"]
[TimeControl "180+2"]
[EndTime "14:27:57 PST"]
[Termination "Vamostodorecto won by resignation"]

1. d4 {[%clk 0:03:01.9]} 1... Nf6 {[%clk 0:03:00.5]} 2. c4 {[%clk 0:03:02.5]}
2... g6 {[%clk 0:03:01.8]} 3. Nc3 {[%clk 0:03:04.1]} 3... Bg7 {[%clk 0:03:03.1]}
4. e4 {[%clk 0:03:05.8]} 4... d6 {[%clk 0:03:04.3]} 5. Be2 {[%clk 0:03:07.5]}
5... O-O {[%clk 0:03:04.7]} 6. Nf3 {[%clk 0:03:09.2]} 6... e5 {[%clk 0:03:05.8]}
7. O-O {[%clk 0:03:10.5]} 7... Nc6 {[%clk 0:03:06.4]} 8. d5 {[%clk 0:03:12.1]}
8... Ne7 {[%clk 0:03:07.7]} 9. Ne1 {[%clk 0:03:13.8]} 9... Nd7 {[%clk
0:03:08.8]} 10. Be3 {[%clk 0:03:15.5]} 10... f5 {[%clk 0:03:10.1]} 11. f3 {[%clk
0:03:17.2]} 11... f4 {[%clk 0:03:11.6]} 12. Bf2 {[%clk 0:03:18.8]} 12... g5
{[%clk 0:03:12.7]} 13. Rc1 {[%clk 0:03:19.3]} 13... Rf6 {[%clk 0:03:08.8]} 14.
c5 {[%clk 0:03:19.5]} 14... Rh6 {[%clk 0:03:01.3]} 15. cxd6 {[%clk 0:03:19.6]}
15... cxd6 {[%clk 0:03:03.2]} 16. Nb5 {[%clk 0:03:19.2]} 16... Qe8 {[%clk
0:03:00]} 17. Kh1 {[%clk 0:03:07.5]} 17... Qh5 {[%clk 0:02:24.9]} 18. Bg1 {[%clk
0:03:08]} 18... Nf8 {[%clk 0:02:15.1]} 19. Nd3 {[%clk 0:02:54.4]} 19... a6
{[%clk 0:02:05.2]} 20. Nc7 {[%clk 0:02:53.9]} 20... Rb8 {[%clk 0:02:06.3]} 21.
Nf2 {[%clk 0:02:50.4]} 21... Qf7 {[%clk 0:02:00.4]} 22. Ng4 {[%clk 0:02:48.3]}
22... Bxg4 {[%clk 0:01:59]} 23. fxg4 {[%clk 0:02:50.2]} 23... Nd7 {[%clk
0:01:50.1]} 24. Ne6 {[%clk 0:02:49.2]} 24... Qe8 {[%clk 0:01:41.1]} 25. Nxg5
{[%clk 0:02:44.6]} 25... Nf6 {[%clk 0:01:39.6]} 26. Bf3 {[%clk 0:02:43.1]} 26...
Qg6 {[%clk 0:01:37.9]} 27. Ne6 {[%clk 0:02:11.5]} 27... Nxe4 {[%clk 0:01:35.9]}
28. Bxe4 {[%clk 0:02:04.9]} 28... Qxe4 {[%clk 0:01:37.8]} 29. Rc7 {[%clk
0:01:57.2]} 29... Bf8 {[%clk 0:01:37.8]} 30. Qb1 {[%clk 0:00:37.8]} 30... Qxb1
{[%clk 0:01:29.5]} 31. Rxb1 {[%clk 0:00:34.2]} 31... Nxd5 {[%clk 0:01:31.4]} 32.
Nxf8 {[%clk 0:00:21.1]} 32... Nxc7 {[%clk 0:01:31.2]} 33. Nd7 {[%clk 0:00:20.1]}
33... Rd8 {[%clk 0:01:29.2]} 34. g5 {[%clk 0:00:21.8]} 34... Re6 {[%clk
0:01:25.2]} 35. Nf6+ {[%clk 0:00:23.7]} 35... Kg7 {[%clk 0:01:25.8]} 36. Bb6
{[%clk 0:00:21.3]} 36... Rc8 {[%clk 0:01:19.1]} 37. Rc1 {[%clk 0:00:22.3]} 37...
e4 {[%clk 0:01:17.9]} 38. Rxc7+ {[%clk 0:00:20.8]} 38... Rxc7 {[%clk 0:01:18.6]}
39. Bxc7 {[%clk 0:00:22.7]} 39... e3 {[%clk 0:01:20.1]} 40. Ba5 {[%clk
0:00:19.5]} 40... e2 {[%clk 0:01:20.7]} 41. Be1 {[%clk 0:00:19.8]} 41... Re5
{[%clk 0:01:15.4]} 42. h4 {[%clk 0:00:19.3]} 42... Rc5 {[%clk 0:01:11.6]} 43.
Kg1 {[%clk 0:00:17.5]} 43... Rc2 {[%clk 0:01:11.7]} 44. Nd5 {[%clk 0:00:13]}
44... Kf7 {[%clk 0:01:08.6]} 45. Bc3 {[%clk 0:00:09.6]} 45... Ke6 {[%clk
0:01:01.2]} 46. Nxf4+ {[%clk 0:00:09.5]} 46... Kf5 {[%clk 0:01:02.8]} 47. Nd3
{[%clk 0:00:09]} 47... d5 {[%clk 0:01:02.7]} 48. Kf2 {[%clk 0:00:08.3]} 48...
Ke4 {[%clk 0:01:03.2]} 49. Ne1 {[%clk 0:00:09.2]} 49... Rc1 {[%clk 0:01:03.1]}
50. Kxe2 {[%clk 0:00:08.4]} 50... d4 {[%clk 0:01:04.3]} 51. Bd2 {[%clk
0:00:07.3]} 51... Rc8 {[%clk 0:01:06.2]} 52. Nd3 {[%clk 0:00:06.8]} 52... b5
{[%clk 0:01:06.5]} 53. Nf2+ {[%clk 0:00:08.2]} 53... Kd5 {[%clk 0:01:07.2]} 54.
h5 {[%clk 0:00:09.7]} 54... Rc2 {[%clk 0:01:05.5]} 55. Nd3 {[%clk 0:00:07.3]}
55... Rc8 {[%clk 0:01:05.1]} 56. g6 {[%clk 0:00:08.4]} 56... hxg6 {[%clk
0:01:05.2]} 57. Nf4+ {[%clk 0:00:08.8]} 57... Ke4 {[%clk 0:01:05.7]} 58. hxg6
{[%clk 0:00:07.6]} 58... Rg8 {[%clk 0:01:00.7]} 59. g4 {[%clk 0:00:08.4]} 59...
d3+ {[%clk 0:01:02.1]} 60. Kf2 {[%clk 0:00:06.7]} 60... Rc8 {[%clk 0:00:53.9]}
61. g7 {[%clk 0:00:06.5]} 61... Rg8 {[%clk 0:00:54.6]} 62. Nh5 {[%clk
0:00:03.9]} 62... Ke5 {[%clk 0:00:45.2]} 63. g5 {[%clk 0:00:05.1]} 63... Ke6
{[%clk 0:00:46.9]} 64. Ke3 {[%clk 0:00:05.5]} 64... Kf5 {[%clk 0:00:48.8]} 65.
Kxd3 {[%clk 0:00:06.4]} 65... Kg6 {[%clk 0:00:49.3]} 66. Nf6 {[%clk 0:00:06.9]}
66... Rxg7 {[%clk 0:00:50.3]} 67. Kc3 {[%clk 0:00:07.9]} 67... Rd7 {[%clk
0:00:49.1]} 68. Nxd7 {[%clk 0:00:08.3]} 1-0

[Event "*** Titled Tuesday Blitz"]
[Site "Chess.com"]
[Date "2019.01.01"]
[Round "6"]
[White "Caminator2000"]
[Black "Manukyan_Artak"]
[Result "1/2-1/2"]
[WhiteElo "2394"]
[BlackElo "2394"]
[TimeControl "180+2"]
[EndTime "14:27:58 PST"]
[Termination "Game drawn by repetition"]

1. d4 {[%clk 0:03:01.9]} 1... e6 {[%clk 0:02:57.9]} 2. c4 {[%clk 0:03:02.1]}
2... d5 {[%clk 0:02:58.8]} 3. Nf3 {[%clk 0:03:01.6]} 3... Nf6 {[%clk 0:02:58.5]}
4. g3 {[%clk 0:03:02.1]} 4... dxc4 {[%clk 0:02:54.4]} 5. Bg2 {[%clk 0:03:02.3]}
5... c6 {[%clk 0:02:46.9]} 6. O-O {[%clk 0:02:54.1]} 6... Nbd7 {[%clk
0:02:43.4]} 7. a4 {[%clk 0:02:52]} 7... a5 {[%clk 0:02:43.8]} 8. Qc2 {[%clk
0:02:42.1]} 8... Nb6 {[%clk 0:02:42.8]} 9. Nbd2 {[%clk 0:02:30.2]} 9... Bb4
{[%clk 0:02:39.2]} 10. Nxc4 {[%clk 0:02:27.7]} 10... Nxc4 {[%clk 0:02:38.1]} 11.
Qxc4 {[%clk 0:02:28.8]} 11... Qd5 {[%clk 0:02:32.3]} 12. Qc2 {[%clk 0:01:59.4]}
12... Qf5 {[%clk 0:02:21.1]} 13. Qxf5 {[%clk 0:01:49.3]} 13... exf5 {[%clk
0:02:21.9]} 14. Ne5 {[%clk 0:01:49.9]} 14... O-O {[%clk 0:02:20.9]} 15. Nd3
{[%clk 0:01:43.9]} 15... Be6 {[%clk 0:02:02.7]} 16. Nxb4 {[%clk 0:01:30.7]}
16... axb4 {[%clk 0:02:03.3]} 17. Bd2 {[%clk 0:01:31.1]} 17... b3 {[%clk
0:01:58.2]} 18. Rfc1 {[%clk 0:01:27.9]} 18... Rfd8 {[%clk 0:01:56.8]} 19. e3
{[%clk 0:01:27.7]} 19... Ne4 {[%clk 0:01:49.8]} 20. Bb4 {[%clk 0:01:26.7]} 20...
Bd5 {[%clk 0:01:44.4]} 21. a5 {[%clk 0:01:22.2]} 21... f6 {[%clk 0:01:28.9]} 22.
Ra3 {[%clk 0:01:12.3]} 22... Kf7 {[%clk 0:01:24.5]} 23. Rca1 {[%clk 0:01:09.5]}
23... Ra6 {[%clk 0:01:24.8]} 24. Bf1 {[%clk 0:01:08.4]} 24... Ra7 {[%clk
0:01:21.2]} 25. Bc5 {[%clk 0:00:57.3]} 25... Nxc5 {[%clk 0:01:20.8]} 26. dxc5
{[%clk 0:00:58.7]} 26... Rda8 {[%clk 0:01:17.8]} 27. Be2 {[%clk 0:00:50.3]}
27... Ke6 {[%clk 0:01:17]} 28. Bd1 {[%clk 0:00:51.5]} 28... g5 {[%clk 0:01:10]}
29. Bxb3 {[%clk 0:00:24.2]} 29... Bxb3 {[%clk 0:01:07.7]} 30. Rxb3 {[%clk
0:00:25.4]} 30... Rxa5 {[%clk 0:00:55.9]} 31. Rxa5 {[%clk 0:00:22.3]} 31... Rxa5
{[%clk 0:00:57.8]} 32. Rxb7 {[%clk 0:00:23.3]} 32... Rxc5 {[%clk 0:00:56.7]} 33.
Rxh7 {[%clk 0:00:24.6]} 33... Rb5 {[%clk 0:00:57.1]} 34. h4 {[%clk 0:00:13.3]}
34... gxh4 {[%clk 0:00:55.5]} 35. gxh4 {[%clk 0:00:14.7]} 35... Rxb2 {[%clk
0:00:56.5]} 36. h5 {[%clk 0:00:16.1]} 36... Rb8 {[%clk 0:00:55]} 37. Kf1 {[%clk
0:00:14.8]} 37... Rc8 {[%clk 0:00:51]} 38. Ke2 {[%clk 0:00:15.5]} 38... c5
{[%clk 0:00:50]} 39. Kd3 {[%clk 0:00:16.9]} 39... c4+ {[%clk 0:00:50.8]} 40. Kc3
{[%clk 0:00:18.2]} 40... f4 {[%clk 0:00:51.8]} 41. exf4 {[%clk 0:00:12.1]} 41...
Kf5 {[%clk 0:00:52.7]} 42. Rg7 {[%clk 0:00:13.2]} 42... Rh8 {[%clk 0:00:48]} 43.
Kxc4 {[%clk 0:00:10.1]} 43... Rxh5 {[%clk 0:00:49.1]} 44. Kd3 {[%clk 0:00:08.9]}
44... Kxf4 {[%clk 0:00:48.6]} 45. Ke2 {[%clk 0:00:08.9]} 45... f5 {[%clk
0:00:47.6]} 46. Rg3 {[%clk 0:00:08.8]} 46... Rh4 {[%clk 0:00:45.3]} 47. Rf3+
{[%clk 0:00:09.7]} 47... Ke4 {[%clk 0:00:44.7]} 48. Re3+ {[%clk 0:00:10.9]}
48... Kd5 {[%clk 0:00:45.9]} 49. Rd3+ {[%clk 0:00:11.8]} 49... Ke5 {[%clk
0:00:47.1]} 50. Re3+ {[%clk 0:00:13.3]} 50... Kf6 {[%clk 0:00:48]} 51. Kf3
{[%clk 0:00:14.2]} 51... Ra4 {[%clk 0:00:46.8]} 52. Kg2 {[%clk 0:00:13.7]} 52...
Kg5 {[%clk 0:00:45]} 53. Rg3+ {[%clk 0:00:14]} 53... Kf4 {[%clk 0:00:45.7]} 54.
Rf3+ {[%clk 0:00:15.4]} 54... Ke4 {[%clk 0:00:46.9]} 55. Re3+ {[%clk 0:00:16.9]}
55... Kd5 {[%clk 0:00:47.9]} 56. Rf3 {[%clk 0:00:18.2]} 56... Ke5 {[%clk
0:00:46.8]} 57. Re3+ {[%clk 0:00:19.5]} 57... Kf6 {[%clk 0:00:48]} 58. Rh3
{[%clk 0:00:21]} 58... Rg4+ {[%clk 0:00:47.5]} 59. Rg3 {[%clk 0:00:22.1]} 59...
Rh4 {[%clk 0:00:47.7]} 60. Rh3 {[%clk 0:00:23.1]} 60... Ra4 {[%clk 0:00:46.8]}
61. Rg3 {[%clk 0:00:23.9]} 61... Ra7 {[%clk 0:00:45.8]} 62. Rb3 {[%clk
0:00:24.6]} 62... Kg5 {[%clk 0:00:43.6]} 63. Rg3+ {[%clk 0:00:25.8]} 63... Kf6
{[%clk 0:00:44.8]} 64. Rb3 {[%clk 0:00:27.1]} 64... Ra4 {[%clk 0:00:45.8]} 65.
Rb6+ {[%clk 0:00:26.3]} 65... Kg5 {[%clk 0:00:46.6]} 66. Rb3 {[%clk 0:00:27.6]}
66... Rc4 {[%clk 0:00:40.3]} 67. Rg3+ {[%clk 0:00:27.6]} 67... Kf6 {[%clk
0:00:41.3]} 68. Rb3 {[%clk 0:00:28.1]} 68... Rd4 {[%clk 0:00:42.1]} 69. Rb6+
{[%clk 0:00:28]} 69... Kg5 {[%clk 0:00:42.9]} 70. Rb3 {[%clk 0:00:29.4]} 70...
Rc4 {[%clk 0:00:43.9]} 71. Rg3+ {[%clk 0:00:30.1]} 71... Kf6 {[%clk 0:00:44.6]}
72. Rf3 {[%clk 0:00:30.4]} 72... Kg5 {[%clk 0:00:45.3]} 73. Rg3+ {[%clk
0:00:31.7]} 73... Kf6 {[%clk 0:00:46.3]} 1/2-1/2

[Event "*** Titled Tuesday Blitz"]
[Site "Chess.com"]
[Date "2019.01.01"]
[Round "6"]
[White "Morshynska"]
[Black "gemarin"]
[Result "0-1"]
[WhiteElo "2086"]
[BlackElo "2085"]
[TimeControl "180+2"]
[EndTime "14:27:59 PST"]
[Termination "gemarin won by resignation"]

1. d4 {[%clk 0:03:01.9]} 1... d5 {[%clk 0:02:59.3]} 2. c4 {[%clk 0:03:02.3]}
2... c6 {[%clk 0:02:58.5]} 3. Nf3 {[%clk 0:03:02.4]} 3... Nf6 {[%clk 0:02:58.9]}
4. e3 {[%clk 0:03:02.5]} 4... Nbd7 {[%clk 0:02:53.9]} 5. Nc3 {[%clk 0:03:01.9]}
5... e6 {[%clk 0:02:54]} 6. b3 {[%clk 0:02:58.9]} 6... Bd6 {[%clk 0:02:53]} 7.
Bb2 {[%clk 0:02:58.5]} 7... O-O {[%clk 0:02:53.5]} 8. Be2 {[%clk 0:02:57.6]}
8... dxc4 {[%clk 0:02:51.4]} 9. Bxc4 {[%clk 0:02:49.6]} 9... e5 {[%clk
0:02:46.3]} 10. Qc2 {[%clk 0:02:37.9]} 10... Qe7 {[%clk 0:02:40.3]} 11. dxe5
{[%clk 0:02:30.2]} 11... Nxe5 {[%clk 0:02:40.3]} 12. Nxe5 {[%clk 0:02:29.4]}
12... Bxe5 {[%clk 0:02:40.7]} 13. h3 {[%clk 0:02:15]} 13... Bc7 {[%clk
0:02:03.9]} 14. Rd1 {[%clk 0:02:00.1]} 14... Be6 {[%clk 0:01:48.2]} 15. Ne2
{[%clk 0:01:43.5]} 15... Ba5+ {[%clk 0:01:41]} 16. Bc3 {[%clk 0:01:33.7]} 16...
Bxc4 {[%clk 0:01:31.4]} 17. Bxa5 {[%clk 0:01:24.9]} 17... Bxe2 {[%clk
0:01:24.3]} 18. Qxe2 {[%clk 0:01:26.8]} 18... Qa3 {[%clk 0:01:25.7]} 19. Bc3
{[%clk 0:01:13.8]} 19... Nd5 {[%clk 0:01:16.2]} 20. Bd4 {[%clk 0:00:54.3]} 20...
Rfd8 {[%clk 0:01:05.7]} 21. O-O {[%clk 0:00:52.9]} 21... c5 {[%clk 0:00:59.6]}
22. Ba1 {[%clk 0:00:41.6]} 22... Ne7 {[%clk 0:00:15.2]} 23. Qg4 {[%clk
0:00:35.2]} 23... Ng6 {[%clk 0:00:13.5]} 24. h4 {[%clk 0:00:32.4]} 24... Qb4
{[%clk 0:00:04]} 25. Qg5 {[%clk 0:00:13.6]} 25... Qxh4 {[%clk 0:00:04.2]} 26.
Qxh4 {[%clk 0:00:11.9]} 26... Nxh4 {[%clk 0:00:04.9]} 27. g4 {[%clk 0:00:11.3]}
27... Ng6 {[%clk 0:00:05.8]} 28. Kg2 {[%clk 0:00:11.6]} 28... b6 {[%clk
0:00:06.8]} 29. f4 {[%clk 0:00:11.7]} 29... Nf8 {[%clk 0:00:08.3]} 30. Kf3
{[%clk 0:00:12.5]} 30... Ne6 {[%clk 0:00:09.3]} 31. e4 {[%clk 0:00:12.1]} 31...
f6 {[%clk 0:00:09.4]} 32. e5 {[%clk 0:00:11.5]} 32... fxe5 {[%clk 0:00:08.6]}
33. Bxe5 {[%clk 0:00:13.4]} 33... Kf7 {[%clk 0:00:08]} 34. Ke4 {[%clk
0:00:14.1]} 34... Nf8 {[%clk 0:00:07.7]} 35. f5 {[%clk 0:00:15]} 35... Nd7
{[%clk 0:00:07.8]} 36. Bc3 {[%clk 0:00:14.3]} 36... Nf6+ {[%clk 0:00:08.2]} 37.
Kf4 {[%clk 0:00:14.8]} 37... h6 {[%clk 0:00:09]} 38. Be5 {[%clk 0:00:13.4]}
38... Nd5+ {[%clk 0:00:09.8]} 39. Kg3 {[%clk 0:00:14.2]} 39... Ne3 {[%clk
0:00:10.3]} 40. Rxd8 {[%clk 0:00:13.8]} 40... Rxd8 {[%clk 0:00:11.8]} 41. Re1
{[%clk 0:00:14.1]} 41... Rd3 {[%clk 0:00:13.3]} 42. Kf4 {[%clk 0:00:13.7]} 42...
Nc2 {[%clk 0:00:13.9]} 43. Re2 {[%clk 0:00:13.8]} 43... Nb4 {[%clk 0:00:14.1]}
44. a3 {[%clk 0:00:13.4]} 44... Nc6 {[%clk 0:00:12]} 45. Bc7 {[%clk 0:00:10.6]}
45... Rd7 {[%clk 0:00:12.1]} 46. Be5 {[%clk 0:00:10.9]} 46... Rd5 {[%clk
0:00:12.7]} 47. Bb2 {[%clk 0:00:10.5]} 47... Nd4 {[%clk 0:00:13]} 48. Bxd4
{[%clk 0:00:08.8]} 48... Rxd4+ {[%clk 0:00:13.8]} 49. Ke5 {[%clk 0:00:09.6]}
49... Rxg4 {[%clk 0:00:14.4]} 50. Rd2 {[%clk 0:00:10.8]} 50... Rg3 {[%clk
0:00:14.9]} 51. Rd7+ {[%clk 0:00:11.4]} 51... Kg8 {[%clk 0:00:15.8]} 52. f6
{[%clk 0:00:11]} 52... Rg5+ {[%clk 0:00:13.9]} 53. Ke6 {[%clk 0:00:09.5]} 53...
Rg6 {[%clk 0:00:11.9]} 54. Rxa7 {[%clk 0:00:09.1]} 54... Rxf6+ {[%clk
0:00:12.7]} 55. Ke5 {[%clk 0:00:09.7]} 55... h5 {[%clk 0:00:13.9]} 56. b4 {[%clk
0:00:09.5]} 56... cxb4 {[%clk 0:00:14.4]} 57. axb4 {[%clk 0:00:10.2]} 57... h4
{[%clk 0:00:16]} 58. b5 {[%clk 0:00:10.9]} 58... h3 {[%clk 0:00:16.5]} 59. Ra3
{[%clk 0:00:11.4]} 59... h2 {[%clk 0:00:16.1]} 60. Rh3 {[%clk 0:00:12]} 60...
Rh6 {[%clk 0:00:17]} 0-1